[Event "FIDE Zonal 2.5 Open 2019"]
[Site "Montevideo"]
[Date "2019.04.14"]
[Round "3.23"]
[White "Zaruski, Julio"]
[Black "Lanaro, Emilio"]
[Result "1-0"]
[ECO "E68"]
[WhiteElo "1842"]
[BlackElo "1694"]
[Annotator "NA RC"]
[PlyCount "115"]
[EventDate "2019.04.13"]
[EventType "swiss"]
[EventCountry "URU"]
[SourceTitle "playchess.com"]
[Source "ChessBase"]
[SourceQuality "1"]
[TimeControl "40/5400+30:1800+30"]

{[%evp 8,108,39,17,32767,32767,32767,32767,32767,32767,32767,32767,32767,32767,45,32767,47,30,46,43,33,38,87,32767,43,52,56,32767,56,59,52,38,57,67,59,40,51,36,29,23,56,32767,32767,32767,32767,32767,32767,51,121,133,212,195,258,32767,32767,32767,32767,32767,32767,331,281,401,32767,32767,32767,32767,513,32767,32767,32767,32767,32767,32767,1551,1356,32767,1589,32767,32767,32767,5106,666,631,0,29969,1722,1520,5306,5085,5799,29961,29967,12831,12229,6589,29972,29964,29982,32767,32767,32767,29986,29987]} 1. d4 {[%emt 0:00:00]} Nf6 {[%emt 0:00:00]} 2. c4 {[%emt 0:00:10]} g6 {[%emt 0:00:00]} 3. g3 {[%emt 0:00:34]} Bg7 {[%emt 0:00:39]} 4. Bg2 {[%emt 0:00:21]} O-O {[%emt 0:00:23]} 5. Nf3 {[%emt 0:00:08]} d6 {[%emt 0:00:37]} 6. O-O {[%emt 0:00:09]} Nbd7 {[%emt 0:01:15]} 7. Nc3 {[%emt 0:02:25]} e5 {[%emt 0:01:49]} 8. e4 {[%emt 0:04:31]} a5 {[%emt 0:04:18]} 9. b3 {[%emt 0:03:07]} exd4 {[%emt 0:03:50]} 10. Nxd4 {[%emt 0:00:41]} Nc5 {[%emt 0:01:04] E68: King's Indian: Fianchetto: 6...Nbd7 7 0-0 e5 8 e4} 11. Bb2 {[%emt 0:01:44]} Bg4 $146 {[%emt 0:02:53]} ({Predecessor:} 11... c6 12. Qc2 Qb6 13. Rad1 a4 14. Rfe1 Ng4 15. h3 Ne5 16. Kh2 axb3 17. axb3 Ned3 18. Rxd3 Nxd3 19. Qxd3 Qxd4 {0-1 (26) Alagappan,M (2143)-Bitan,B (2306) Chennai 2009}) 12. f3 {[%emt 0:02:00]} Bd7 {[%emt 0:00:44]} 13. Qd2 {[%emt 0:01:35]} Re8 {[%emt 0:04:16]} 14. Rad1 {[%emt 0:02:06]} Ne6 {[%emt 0:02:28]} 15. Nd5 {[%emt 0:08:04]} Nxd5 {[%emt 0:02:21]} 16. Nxe6 {[%emt 0:01:12]} Bxe6 {[%emt 0:06:20]} 17. cxd5 {[%emt 0:04:52]} Bd7 {[%emt 0:01:43]} 18. Bxg7 {[%emt 0:00:15]} Kxg7 {[%emt 0:00:05]} 19. Rc1 {[%emt 0:03:01]} c5 {[%emt 0:06:43]} 20. dxc6 Bxc6 {[%emt 0:00:23]} 21. Rfd1 {[%emt 0:07:21]} Qb6+ {[%emt 0:03:26]} 22. Qd4+ {[%emt 0:01:27]} Qxd4+ {[%emt 0:00:10]} 23. Rxd4 {[%emt 0:00:07]} f5 {[%emt 0:11:32]} 24. Rxd6 {[%emt 0:09:49]} fxe4 {[%emt 0:00:21]} 25. fxe4 {[%emt 0:00:07]} Bxe4 {[%emt 0:01:12]} 26. Rc7+ {[%emt 0:00:12]} Kh6 {[%emt 0:20:50]} 27. h4 {[%emt 0:15:58]} (27. Rdd7 $16 Bxg2 28. Rxh7+ (28. Kxg2 Rac8 $16) 28... Kg5 29. Kxg2) 27... Bxg2 {[%emt 0:12:09]} (27... Bf5 $14) 28. Kxg2 {[%emt 0:00:09]} Re2+ {[%emt 0:01:45]} (28... b5 $16 {keeps fighting.}) 29. Kh3 {[%emt 0:04:11]} Rg8 {[%emt 0:10:26]} (29... Rh8 $142 30. a4 (30. Rxb7 Rxa2 31. Ra6 Ra1 $16) 30... Ree8 31. Rxb7 Rd8) 30. Rdd7 {[%emt 0:09:40]} Rh8 {[%emt 0:00:13]} 31. a4 {[%emt 0:08:32]} Re4 {[%emt 0:00:41]} 32. Rxb7 {[%emt 0:01:50]} Rb4 {[%emt 0:00:51]} 33. g4 {[%emt 0:01:44]} Rxb7 {[%emt 0:00:15]} 34. Rxb7 {[%emt 0:01:02]} g5 {[%emt 0:00:44]} 35. Rb5 {[%emt 0:01:13]} gxh4 {[%emt 0:00:20]} 36. Rxa5 {[%emt 0:00:06]} Rc8 {[%emt 0:00:23]} 37. Kxh4 {[%emt 0:00:38]} Rc3 {[%emt 0:00:09]} 38. Rb5 {[%emt 0:00:54]} Rc1 {[%emt 0:00:22]} 39. Rb6+ {[%emt 0:00:11]} Kg7 {[%emt 0:00:08]} 40. a5 {[%emt 0:02:06]} Ra1 {[%emt 0:00:26]} 41. b4 {[%emt 0:30:35]} Ra4 {[%emt 0:03:30]} 42. Kg5 {[%emt 0:00:00]} h6+ {[%emt 0:00:35]} 43. Kh5 {[%emt 0:00:00]} Ra1 {[%emt 0:00:39]} 44. Rb7+ {[%emt 0:00:00]} Kf6 {[%emt 0:00:08]} 45. Rb6+ $2 {[%emt 0:00:00]} (45. Kh4 $18 Rh1+ 46. Kg3) 45... Kg7 $1 {[%emt 0:00:16]} 46. Kh4 {[%emt 0:00:00]} (46. Rg6+ $142 Kf8 47. Rxh6) 46... Ra2 {[%emt 0:00:27]} 47. a6 {[%emt 0:00:00]} Ra4 {[%emt 0:00:38]} 48. g5 {[%emt 0:00:00]} hxg5+ {[%emt 0:00:24]} 49. Kxg5 {[%emt 0:00:00]} Kf7 {[%emt 0:00:10]} 50. Kf5 {[%emt 0:00:00]} Ke7 {[%emt 0:00:09]} 51. Ke5 {[%emt 0:00:00]} Kd7 {[%emt 0:00:06]} 52. b5 {[%emt 0:00:00]} Kc7 {[%emt 0:06:14]} 53. Rb7+ {[%emt 0:00:00]} Kc8 {[%emt 0:00:08]} 54. Kd5 {[%emt 0:00:00]} Ra1 {[%emt 0:00:59]} 55. Kc6 {[%emt 0:00:00]} Rh1 {[%emt 0:02:45]} 56. Kb6 {[%emt 0:00:00]} Rh5 {[%emt 0:02:00]} 57. Rg7 {[%emt 0:00:00]} Rh6+ {[%emt 0:01:28]} 58. Ka7 {[%emt 0:00:00]} 1-0

[Event "FIDE Zonal 2.5 Open 2019"]
[Site "Montevideo"]
[Date "2019.04.14"]
[Round "3.24"]
[White "Manteiga, Franco"]
[Black "Pena Canapa, Alfredo"]
[Result "1/2-1/2"]
[ECO "A48"]
[WhiteElo "1684"]
[BlackElo "1811"]
[Annotator "NA RC"]
[PlyCount "103"]
[EventDate "2019.04.13"]
[EventType "swiss"]
[EventCountry "URU"]
[SourceTitle "playchess.com"]
[Source "ChessBase"]
[SourceQuality "1"]
[TimeControl "40/5400+30:1800+30"]

1. d4 Nf6 {[%emt 0:00:00]} 2. Nf3 {[%emt 0:00:01]} g6 {[%emt 0:00:00]} 3. c4 {[%emt 0:01:56]} c5 {[%emt 0:00:30]} 4. Nc3 {[%emt 0:00:08]} cxd4 {[%emt 0:00:48]} 5. Nxd4 {[%emt 0:02:38]} Nc6 {[%emt 0:00:33]} 6. Nxc6 {[%emt 0:00:27]} bxc6 {[%emt 0:00:50]} 7. e4 d6 {[%emt 0:00:18]} 8. Be2 {[%emt 0:04:56]} Bg7 {[%emt 0:00:10]} 9. O-O {[%emt 0:01:34]} O-O {[%emt 0:00:51]} 10. Be3 {[%emt 0:15:41]} c5 {[%emt 0:08:42] B38: Sicilian: Maroczy Bind with 5...Bg7 and 7...0-0} (10... Bb7 11. f4 Nd7 12. Qd2 f5 13. exf5 gxf5 14. Bf3 Nf6 15. Rad1 Qc8 16. Rfe1 c5 17. Nd5 Rf7 18. Nxf6+ Bxf6 19. Bxb7 Qxb7 {½-½ (45) Velicka,P (2413)-Butkiewicz,L (2432) Czechia 2014}) 11. f3 {[%emt 0:12:57]} Nd7 $146 {[%emt 0:04:02]} ({Predecessor:} 11... Rb8 12. Qd2 Re8 13. Rfd1 Qb6 14. Rab1 Qa5 15. a3 Nd7 16. Nb5 Qxd2 17. Rxd2 Rb7 18. Rc2 {0-1 (48) Vargas,E (1928)-Guzman,C (1980) Manizales 2017}) 12. f4 {[%emt 0:06:57]} Rb8 {[%emt 0:06:06]} 13. Qd2 {[%emt 0:08:16]} Re8 {[%emt 0:16:01]} 14. Rad1 {[%emt 0:13:02]} Qa5 {[%emt 0:07:22]} 15. Rc1 {[%emt 0:05:06]} Nf8 {[%emt 0:03:05]} 16. f5 {[%emt 0:04:21]} Nd7 {[%emt 0:21:32]} 17. Bh6 {[%emt 0:01:59]} Bd4+ {[%emt 0:06:51]} 18. Be3 Rxb2 {[%emt 0:00:06]} 19. Qxb2 {[%emt 0:01:35]} Bxe3+ 20. Kh1 {[%emt 0:00:33]} Bxc1 {[%emt 0:00:38]} 21. Qxc1 {[%emt 0:01:39]} Nf6 {[%emt 0:01:46]} (21... Ne5 $142 22. h3 Bb7) 22. fxg6 {[%emt 0:04:48]} hxg6 {[%emt 0:02:29]} 23. Qe3 Be6 24. Rf4 {[%emt 0:01:27]} Kg7 {[%emt 0:14:11]} 25. e5 {[%emt 0:02:34]} dxe5 {[%emt 0:00:57]} 26. Qxe5 {[%emt 0:00:06]} Rc8 {[%emt 0:01:18]} 27. g4 {[%emt 0:01:59]} Qc7 {[%emt 0:02:11]} 28. Qe3 {[%emt 0:02:02]} Rh8 {[%emt 0:01:55]} 29. Qg3 {[%emt 0:04:12]} g5 {[%emt 0:00:05]} 30. Rf3 {[%emt 0:00:05]} Qxg3 {[%emt 0:00:30]} 31. Rxg3 {[%emt 0:00:30]} Rd8 {[%emt 0:00:06]} 32. h3 {[%emt 0:01:47]} Rd2 {[%emt 0:02:51]} 33. Re3 {[%emt 0:00:39]} Rc2 {[%emt 0:00:43]} 34. Kg1 {[%emt 0:01:33]} Kf8 {[%emt 0:00:42]} 35. Kf1 Bd7 {[%emt 0:00:18]} 36. Ke1 {[%emt 0:01:46]} Bc6 {[%emt 0:00:30]} 37. Kd1 {[%emt 0:00:27]} Rb2 38. Kc1 Rb4 {[%emt 0:01:06]} 39. Re5 {[%emt 0:01:10]} Nd7 40. Rxg5 {[%emt 0:00:22]} f6 {[%emt 0:00:40]} 41. Rh5 {[%emt 0:30:33]} Ne5 42. Rh8+ {[%emt 0:00:32]} Kf7 {[%emt 0:31:28]} 43. Rc8 {[%emt 0:00:00]} Rb7 {[%emt 0:00:00]} 44. Nd5 {[%emt 0:00:00]} Ke6 {[%emt 0:00:00]} 45. Rc7 {[%emt 0:00:00]} Rxc7 {[%emt 0:00:00]} 46. Nxc7+ {[%emt 0:00:00]} Kd6 {[%emt 0:00:00]} 47. Nb5+ {[%emt 0:00:00]} Bxb5 {[%emt 0:00:00]} 48. cxb5 {[%emt 0:00:00]} Ng6 {[%emt 0:00:00]} 49. Kd2 {[%emt 0:00:00]} Kc7 {[%emt 0:01:22]} 50. Ke3 e6 {[%emt 0:01:07]} 51. Ke4 {[%emt 0:01:00]} Kd6 $18 (51... Kb6 $16 52. Bc4 Nh4) 52. a4 {[%emt 0:02:28]} 1/2-1/2

[Event "FIDE Zonal 2.5 Open 2019"]
[Site "Montevideo"]
[Date "2019.04.14"]
[Round "3.25"]
[White "Reolon, Victor"]
[Black "Palacio, Enzo"]
[Result "1-0"]
[ECO "D71"]
[WhiteElo "1659"]
[BlackElo "1745"]
[Annotator "NA RC"]
[PlyCount "93"]
[EventDate "2019.04.13"]
[EventType "swiss"]
[EventCountry "URU"]
[SourceTitle "playchess.com"]
[Source "ChessBase"]
[SourceQuality "1"]
[TimeControl "40/5400+30:1800+30"]

1. d4 {[%emt 0:00:00]} Nf6 {[%emt 0:00:00]} 2. c4 {[%emt 0:00:00]} g6 {[%emt 0:00:00]} 3. g3 {[%emt 0:00:48]} Bg7 {[%emt 0:00:00]} 4. Bg2 {[%emt 0:00:09]} O-O {[%emt 0:00:00]} 5. e3 {[%emt 0:01:02]} c6 {[%emt 0:03:23]} 6. Nf3 {[%emt 0:03:24]} d5 {[%emt 0:00:11]} 7. Nc3 {[%emt 0:02:11]} Nbd7 {[%emt 0:21:08]} 8. b3 {[%emt 0:06:43]} e6 {[%emt 0:00:53]} 9. O-O {[%emt 0:02:26]} c5 {[%emt 0:02:39]} 10. Bb2 {[%emt 0:11:28]} cxd4 {[%emt 0:08:32]} 11. exd4 {[%emt 0:04:14]} Nb6 {[%emt 0:00:57]} 12. c5 {[%emt 0:01:54]} Nbd7 {[%emt 0:00:05]} 13. b4 {[%emt 0:02:41]} Nb8 {[%emt 0:05:10]} 14. b5 {[%emt 0:08:25]} Bd7 {[%emt 0:00:40]} 15. Ne5 {[%emt 0:02:39]} Ne8 {[%emt 0:02:50]} 16. f4 {[%emt 0:06:27]} Nc7 {[%emt 0:00:34]} 17. a4 {[%emt 0:06:12]} h5 {[%emt 0:03:38]} 18. Ba3 {[%emt 0:02:26]} h4 {[%emt 0:01:09]} 19. Qg4 {[%emt 0:05:14]} hxg3 {[%emt 0:01:05]} 20. hxg3 {[%emt 0:03:56]} a6 {[%emt 0:00:05]} 21. b6 {[%emt 0:07:26]} Ne8 {[%emt 0:00:16]} 22. c6 {[%emt 0:05:15]} Nxc6 {[%emt 0:00:02]} 23. Bxf8 {[%emt 0:00:29]} Kxf8 {[%emt 0:00:10]} 24. Nxd5 {[%emt 0:00:55]} Nxe5 {[%emt 0:01:15]} 25. fxe5 {[%emt 0:01:09]} exd5 {[%emt 0:00:36]} 26. Qxg6 {[%emt 0:01:08]} Nf6 {[%emt 0:03:15]} 27. Rxf6 {[%emt 0:02:13]} Bxf6 {[%emt 0:00:16]} 28. Qxf6 {[%emt 0:02:09]} Qxf6 {[%emt 0:01:15]} 29. exf6 {[%emt 0:00:02]} Bc6 {[%emt 0:00:09]} 30. Kf2 {[%emt 0:01:45]} Rd8 {[%emt 0:01:07]} 31. Rh1 {[%emt 0:00:43]} Kg8 {[%emt 0:00:03]} 32. a5 {[%emt 0:04:22]} Rd6 {[%emt 0:01:50]} 33. Rh6 {[%emt 0:00:25]} Bd7 {[%emt 0:00:07]} 34. Bf3 {[%emt 0:00:48]} Be6 {[%emt 0:00:31]} 35. Rh5 {[%emt 0:01:48]} Rc6 {[%emt 0:03:36]} 36. Bxd5 {[%emt 0:01:17]} Bxd5 {[%emt 0:00:18]} 37. Rxd5 {[%emt 0:00:17]} Rxf6+ {[%emt 0:00:01]} 38. Ke3 {[%emt 0:00:26]} Rf1 {[%emt 0:01:44]} 39. Rd7 {[%emt 0:00:38]} Ra1 {[%emt 0:00:06]} 40. Rxb7 {[%emt 0:00:26]} Rxa5 {[%emt 0:00:03]} 41. Rc7 {[%emt 0:32:35]} Rb5 {[%emt 0:30:21]} 42. b7 {[%emt 0:00:12]} Kg7 {[%emt 0:00:03]} 43. d5 {[%emt 0:00:24]} Kf6 {[%emt 0:00:16]} 44. d6 {[%emt 0:00:49]} a5 {[%emt 0:00:13]} 45. d7 {[%emt 0:00:42]} Ke7 {[%emt 0:00:06]} 46. d8=Q+ {[%emt 0:01:24]} Kxd8 {[%emt 0:00:09]} 47. Rc8+ {[%emt 0:00:08]} 1-0

[Event "FIDE Zonal 2.5 Open 2019"]
[Site "Montevideo"]
[Date "2019.04.14"]
[Round "3.26"]
[White "Campora, Edgardo"]
[Black "Romero, Robert"]
[Result "1-0"]
[ECO "B50"]
[WhiteElo "1705"]
[BlackElo "1599"]
[Annotator "NA RC"]
[PlyCount "65"]
[EventDate "2019.04.13"]
[EventType "swiss"]
[EventCountry "URU"]
[SourceTitle "playchess.com"]
[Source "ChessBase"]
[SourceQuality "1"]
[TimeControl "40/5400+30:1800+30"]

1. e4 c5 {[%emt 0:00:00]} 2. Nf3 {[%emt 0:01:49]} d6 {[%emt 0:00:40]} 3. c3 {[%emt 0:03:00]} e6 4. d4 cxd4 {[%emt 0:00:50]} 5. cxd4 {[%emt 0:00:35]} Nf6 6. Bd3 {[%emt 0:02:13]} Be7 {[%emt 0:00:25]} 7. Nc3 {[%emt 0:02:28]} O-O 8. Bf4 b6 {[%emt 0:04:14]} 9. Rc1 {[%emt 0:04:03]} Bb7 {[%emt 0:00:10]} 10. Qe2 {[%emt 0:00:19]} Re8 {[%emt 0:07:26]} 11. O-O {[%emt 0:07:17]} Nbd7 12. Nb5 {[%emt 0:08:42]} Nf8 {[%emt 0:03:53]} 13. Nc7 {[%emt 0:01:15]} Ng6 {[%emt 0:25:34]} 14. Bd2 {[%emt 0:22:49]} Nh5 {[%emt 0:08:54]} 15. Bb1 {[%emt 0:03:08]} Nf6 {[%emt 0:00:46]} 16. Nxe8 {[%emt 0:03:11]} Qxe8 {[%emt 0:00:57]} 17. Rfe1 {[%emt 0:07:58]} a5 {[%emt 0:04:43]} 18. Bd3 d5 19. e5 {[%emt 0:10:40]} Ne4 {[%emt 0:00:37]} 20. Bb5 {[%emt 0:00:06]} Qd8 {[%emt 0:06:11]} 21. Rc2 Nh4 22. Nxh4 {[%emt 0:11:45]} Bxh4 {[%emt 0:00:37]} 23. g3 {[%emt 0:00:04]} Be7 {[%emt 0:00:07]} 24. Be3 {[%emt 0:00:09]} g6 {[%emt 0:02:24]} 25. f3 Ng5 26. h4 {[%emt 0:01:12]} Ne4 {[%emt 0:09:53]} 27. fxe4 {[%emt 0:00:18]} dxe4 {[%emt 0:00:06]} 28. Rec1 {[%emt 0:01:19]} Bd5 {[%emt 0:01:22]} 29. Bc6 Rb8 30. Bxd5 {[%emt 0:02:42]} exd5 {[%emt 0:03:55]} 31. Bh6 {[%emt 0:00:30]} f5 32. e6 {[%emt 0:01:11]} Bd6 {[%emt 0:06:46]} 33. Qa6 {[%emt 0:00:18]} 1-0

[Event "FIDE Zonal 2.5 Open 2019"]
[Site "Montevideo"]
[Date "2019.04.15"]
[Round "4.16"]
[White "Curia, Santiago Jose"]
[Black "Adasme Fredes, Mauricio"]
[Result "1-0"]
[ECO "B40"]
[WhiteElo "1989"]
[BlackElo "2086"]
[Annotator "NA RC"]
[PlyCount "93"]
[EventDate "2019.04.13"]
[EventType "swiss"]
[EventCountry "URU"]
[SourceTitle "playchess.com"]
[Source "ChessBase"]
[SourceQuality "1"]
[TimeControl "40/5400+30:1800+30"]

1. e4 {[%emt 0:00:00]} c5 {[%emt 0:01:03]} 2. Nf3 {[%emt 0:00:00]} e6 {[%emt 0:00:05]} 3. d3 {[%emt 0:00:00]} Nc6 {[%emt 0:00:34]} 4. g3 {[%emt 0:00:00]} Nge7 {[%emt 0:01:41]} 5. Bg2 {[%emt 0:00:14]} g6 {[%emt 0:00:07]} 6. O-O {[%emt 0:00:10]} Bg7 {[%emt 0:00:03]} 7. Re1 {[%emt 0:00:18]} d6 {[%emt 0:00:14]} 8. c3 {[%emt 0:00:30]} O-O {[%emt 0:00:15]} 9. a3 {[%emt 0:03:50]} e5 {[%emt 0:02:19]} 10. b4 {[%emt 0:00:30]} h6 {[%emt 0:01:35]} 11. b5 {[%emt 0:00:34] A04: Unusual lines after 1 Nf3 and King's Indian Attack} Na5 {[%emt 0:00:31]} 12. c4 {[%emt 0:00:07]} a6 $146 {[%emt 0:01:56]} ({Predecessor:} 12... f5 13. Nc3 f4 14. h3 g5 15. Nh2 Bd7 16. Bd2 Qc8 17. g4 b6 18. Ra2 Rf7 {½-½ (79) Nevednichy,V (2590)-Ivanisevic,I (2619) Kozloduy 2013}) 13. a4 {[%emt 0:02:14]} f5 {[%emt 0:00:56]} 14. Ra2 {[%emt 0:07:27]} Kh7 {[%emt 0:07:31]} 15. Qc2 {[%emt 0:06:23]} Be6 {[%emt 0:04:26]} 16. Nbd2 {[%emt 0:03:14]} f4 {[%emt 0:00:24]} 17. gxf4 {[%emt 0:02:14]} exf4 {[%emt 0:00:10]} 18. e5 {[%emt 0:00:10]} d5 {[%emt 0:00:54]} 19. d4 {[%emt 0:13:44]} (19. Ra3 $11 {remains equal.}) 19... Nxc4 {[%emt 0:10:53]} 20. Nxc4 {[%emt 0:00:16]} dxc4 {[%emt 0:00:02]} 21. dxc5 {[%emt 0:00:36]} Qd3 {[%emt 0:07:03]} 22. Rd1 {[%emt 0:06:32]} Qxc2 {[%emt 0:00:16]} 23. Rxc2 {[%emt 0:00:14]} Rad8 {[%emt 0:00:33]} (23... axb5 $11 {keeps the balance.} 24. axb5 Ra4) 24. Rxd8 {[%emt 0:16:26]} (24. Rd6 $16 Bg8 25. bxa6 bxa6 26. Bd2) 24... Rxd8 {[%emt 0:00:03]} 25. Bxf4 {[%emt 0:00:48]} (25. Rd2 $11 Bd5 26. Bb2) 25... Rd1+ {[%emt 0:00:26]} 26. Bf1 {[%emt 0:00:04]} Bh3 $2 {[%emt 0:03:20]} (26... Bd5 $17 {keeps the pressure on.} 27. Nd2 axb5 28. axb5 g5) 27. Rc1 {[%emt 0:00:07]} Rxf1+ {[%emt 0:03:20]} 28. Rxf1 {[%emt 0:00:14]} Bxf1 $2 {[%emt 0:00:04]} (28... axb5 29. axb5 Nd5) 29. Kxf1 {[%emt 0:00:07]} (29. c6 $142 Nxc6 30. bxc6 (30. Kxf1 axb5 31. axb5 Ne7 $15) 30... bxc6 31. Kxf1) 29... g5 $2 {[%emt 0:00:18] [#]} (29... axb5 {was worth a try.} 30. axb5 g5) 30. c6 $1 {[%emt 0:10:24]} bxc6 {[%emt 0:00:26]} 31. bxa6 {[%emt 0:00:20]} Nc8 {[%emt 0:00:17]} 32. Be3 {[%emt 0:00:07]} g4 {[%emt 0:00:23]} 33. Ne1 {[%emt 0:01:58]} Bxe5 {[%emt 0:00:17]} 34. a7 {[%emt 0:00:01]} Nxa7 {[%emt 0:00:12]} 35. Bxa7 {[%emt 0:00:03]} Bxh2 {[%emt 0:00:20]} 36. a5 {[%emt 0:01:04]} Kg6 {[%emt 0:01:00]} 37. a6 {[%emt 0:02:06]} h5 {[%emt 0:03:17]} 38. Bd4 {[%emt 0:04:20]} Bb8 {[%emt 0:00:08]} 39. Nc2 {[%emt 0:00:04]} Kf5 {[%emt 0:00:51]} 40. Nb4 {[%emt 0:00:12]} Ke4 {[%emt 0:00:39]} 41. Nxc6 {[%emt 0:34:39]} h4 {[%emt 0:33:20]} 42. Nxb8 {[%emt 0:00:16]} Kxd4 {[%emt 0:00:06]} 43. a7 {[%emt 0:00:16]} c3 {[%emt 0:00:08]} 44. a8=Q {[%emt 0:00:26]} c2 {[%emt 0:00:14]} 45. Qa1+ {[%emt 0:00:07]} Kc4 {[%emt 0:00:34]} 46. Qc1 {[%emt 0:00:07]} Kc3 {[%emt 0:00:09]} 47. Nd7 {[%emt 0:00:10]} 1-0

[Event "FIDE Zonal 2.5 Open 2019"]
[Site "Montevideo"]
[Date "2019.04.15"]
[Round "4.18"]
[White "Belmes, Martin"]
[Black "Rodriguez Farias, Eduardo"]
[Result "1-0"]
[ECO "B22"]
[WhiteElo "2081"]
[BlackElo "1898"]
[Annotator "NA RC"]
[PlyCount "95"]
[EventDate "2019.04.13"]
[EventType "swiss"]
[EventCountry "URU"]
[SourceTitle "playchess.com"]
[Source "ChessBase"]
[SourceQuality "1"]
[TimeControl "40/5400+30:1800+30"]

1. e4 {[%emt 0:00:00]} c5 {[%emt 0:00:00]} 2. c3 {[%emt 0:00:00]} Nf6 {[%emt 0:00:47]} 3. e5 {[%emt 0:00:00]} Nd5 {[%emt 0:00:22]} 4. Nf3 {[%emt 0:00:00]} e6 {[%emt 0:00:33]} 5. Bc4 {[%emt 0:00:00]} d6 6. d4 cxd4 {[%emt 0:00:44]} 7. cxd4 {[%emt 0:00:24]} Be7 8. O-O {[%emt 0:00:08] B22: Sicilian: 2 c3} O-O {[%emt 0:01:15]} 9. Bd2 {[%emt 0:00:08]} Nc6 {[%emt 0:06:38]} 10. Nc3 {[%emt 0:00:17]} Nxc3 {[%emt 0:00:14]} 11. Bxc3 {[%emt 0:00:04]} dxe5 {[%emt 0:00:29]} (11... Qb6 12. a3 Bd7 13. Qd2 Rad8 14. Rfe1 dxe5 15. dxe5 Be8 16. Bd3 Bc5 {1-0 (43) Zhigalko,S (2604)-Hansen,E (2615) chess.com INT 2019}) 12. Nxe5 {[%emt 0:01:00]} Nxe5 {[%emt 0:00:12]} 13. dxe5 Qxd1 $146 {[%emt 0:01:08]} ({Predecessor:} 13... Bd7 14. Bd3 Bc6 15. Qc2 g6 16. Be4 Qb6 17. Bxc6 bxc6 {0-1 (24) Tscharotschkin,M (2148)-Ivic,V (2375) Paracin 2017}) 14. Rfxd1 {[%emt 0:00:18]} Rd8 {[%emt 0:08:56]} 15. Rxd8+ {[%emt 0:02:42]} Bxd8 {[%emt 0:00:00]} 16. Rd1 Be7 17. a4 {[%emt 0:07:49]} Kf8 {[%emt 0:03:00]} 18. a5 {[%emt 0:02:04]} a6 {[%emt 0:00:14]} 19. Bb3 {[%emt 0:00:27]} f6 {[%emt 0:15:19]} 20. Bc2 {[%emt 0:07:13]} f5 {[%emt 0:03:41]} 21. Ba4 {[%emt 0:02:10]} Bc5 {[%emt 0:09:22]} 22. Rd8+ {[%emt 0:06:05]} Ke7 {[%emt 0:00:41]} 23. Re8+ {[%emt 0:00:18]} Kf7 {[%emt 0:00:46]} 24. Bd7 {[%emt 0:00:16]} Bxd7 {[%emt 0:00:18]} 25. Rxa8 {[%emt 0:00:05]} Bc6 {[%emt 0:00:19]} 26. Rd8 {[%emt 0:00:20]} Be7 {[%emt 0:03:21]} 27. Rd1 {[%emt 0:00:44]} Bd5 {[%emt 0:00:41]} 28. Bd4 {[%emt 0:03:05]} Ke8 {[%emt 0:05:14]} 29. Rc1 {[%emt 0:01:51]} Bc6 {[%emt 0:01:11]} 30. f4 {[%emt 0:00:10]} Kf7 {[%emt 0:03:23]} 31. Bc5 {[%emt 0:02:55]} Bd8 {[%emt 0:00:10]} 32. Bb6 {[%emt 0:03:25]} Be7 33. g3 {[%emt 0:00:35]} Ke8 {[%emt 0:02:12]} 34. Kf2 {[%emt 0:00:09]} Kf7 {[%emt 0:01:10]} 35. Ke3 {[%emt 0:00:06]} Ke8 {[%emt 0:00:16]} 36. Bc5 {[%emt 0:01:22]} Bd8 {[%emt 0:00:23]} 37. b4 {[%emt 0:00:07]} Kd7 {[%emt 0:02:19]} 38. Rc2 {[%emt 0:02:48]} Ke8 {[%emt 0:03:25]} (38... g5 {was called for.} 39. Rc4 h5) 39. Rd2 {[%emt 0:01:29]} Bd7 {[%emt 0:00:42]} (39... g5 $142 40. Ba7 Be7) 40. h3 {[%emt 0:01:38]} Bc6 {[%emt 0:01:01]} 41. g4 {[%emt 0:31:40]} Bb5 {[%emt 0:38:45]} 42. Rd6 {[%emt 0:05:20]} Bd7 {[%emt 0:02:03]} 43. g5 {[%emt 0:02:31]} Bc7 {[%emt 0:01:22]} 44. Rd1 {[%emt 0:00:06]} Bd8 {[%emt 0:00:44]} 45. h4 {[%emt 0:00:45]} Bc6 {[%emt 0:01:12]} 46. h5 {[%emt 0:00:05]} Bd7 {[%emt 0:00:28]} 47. g6 {[%emt 0:00:52]} h6 {[%emt 0:00:09] [#]} 48. Bf8 $18 {[%emt 0:00:08]} 1-0